Cogmind - Beta 14 @@@ ROGUE MODE // 2024.11.10 @ 00:45:45 Player: Fangrelle Result: Destroyed by G-47 Trooper with Particle Gun Performance ------------- Evolutions (2) 1000 Regions Visited (7) 1400 Robots Destroyed (134) 670 Value Destroyed (3270) 3270 Prototype IDs (27) 540 Alien Tech Used (0) 0 Bonus (560) 560 TOTAL SCORE: 7440 Bonus ------- High Alert Combat Kills 253 Follower Combat Kills 14 Aligned with FarCom 300 Friendly Fire -7 Cogmind --------- Core Integrity 0/550 Matter 300/300 Energy 100/100 System Corruption 0% Temperature Cool (9) Movement Core (1350) Ox26 Location -8/Materials Parts ------- > --- POWER (1) -------- (None) > --- PROPULSION (2) --- (None) > --- UTILITY (6) ------ Huge Storage Unit > --- WEAPON (2) ------- (None) > --- INVENTORY (25) --- Reinforced Deuterium Engine Fission Core Improved VTOL Module Improved VTOL Module Huge Storage Unit Superbattery (1500) High-capacity Matter Pod (200) High-capacity Matter Pod (200) High-capacity Matter Pod (200) High-capacity Matter Pod (200) Faulty Experimental Sensor Array Signal Interpreter Improved Targeting Computer Decoy Drone Bay Grenade Launcher Grenade Launcher Grenade Launcher Datajack Datajack Improved Datajack Peak State ------------ > --- POWER ------------ Improved Ion Engine > --- PROPULSION ------- Armored Treads Armored Treads > --- UTILITY ---------- Heat Sink Huge Storage Unit Machine Analyzer Advanced Visual Processing Unit Hacking Suite Hacking Suite > --- WEAPON ----------- Minigun Axe > --- INVENTORY -------- Reinforced Deuterium Engine Fission Core Light Fission Core Improved VTOL Module Improved VTOL Module Huge Storage Unit Superbattery High-capacity Matter Pod High-capacity Matter Pod High-capacity Matter Pod High-capacity Matter Pod Experimental Sensor Array Signal Interpreter Improved Targeting Computer Decoy Drone Bay Spread Laser Minigun Gauss Rifle Grenade Launcher Grenade Launcher Grenade Launcher Datajack Datajack Improved Datajack [Rating: 36] Favorites ----------- Power Improved Ion Engine Engine Improved Ion Engine Propulsion Light Treads Treads Light Treads Wheel Wheel Flight Unit Improved VTOL Module Utility Hardened Medium Armor Plating Device Heat Sink Storage Large Storage Unit Processor Targeting Computer Hackware Hacking Suite Protection Hardened Medium Armor Plating Weapon Axe Energy Gun Spread Laser Energy Cannon Advanced Beam Cannon Ballistic Gun Autogun Launcher Grenade Launcher Slashing Weapon Axe Build | -11 -10 -10 -9 -9 -9 -8 -8 ------- Run | Yrd Mat Min Mat Min Exi Min Mat Slots Evolved 4 | . . . 2 . . . 2 Power . | . . . . . . . . Propulsion . | . . . . . . . . Utility 4 | . . . 2 . . . 2 Weapon . | . . . . . . . . Parts Attached 105 | 7 6 10 34 10 . 1 37 Power 10 | 1 . 3 2 1 . 1 2 Engine 10 | 1 . 3 2 1 . 1 2 Core . | . . . . . . . . Reactor . | . . . . . . . . Propulsion 20 | 2 1 . 6 2 . . 9 Treads 14 | 2 1 . 6 1 . . 4 Leg . | . . . . . . . . Wheel 3 | . . . . 1 . . 2 Hover . | . . . . . . . . Flight 3 | . . . . . . . 3 Utility 27 | 2 2 1 11 3 . . 8 Device 5 | 1 . . 3 1 . . . Storage 5 | 1 1 . 1 1 . . 1 Processor 4 | . 1 1 . . . . 2 Hackware 2 | . . . . . . . 2 Protection 11 | . . . 7 1 . . 3 Artifact . | . . . . . . . . Weapon 48 | 2 3 6 15 4 . . 18 Energy Gun 13 | 1 . . 5 1 . . 6 Energy Cannon 3 | . . . 2 1 . . . Ballistic Gun 16 | 1 2 3 3 . . . 7 Ballistic Cannon . | . . . . . . . . Launcher 9 | . 1 3 2 1 . . 2 Special Weapon . | . . . . . . . . Impact Weapon . | . . . . . . . . Slashing Weapon 7 | . . . 3 1 . . 3 Piercing Weapon . | . . . . . . . . Special Melee Weapon . | . . . . . . . . Unidentified Prototypes 4 | . . . 1 . . . 3 Parts Lost 37 | . . . 12 5 . . 20 Power 3 | . . . 1 1 . . 1 Propulsion 9 | . . . 3 1 . . 5 Utility 14 | . . . 6 1 . . 7 Weapon 11 | . . . 2 2 . . 7 Highest Loss Streak 8 | . . . 5 3 . . 8 To Critical Strikes . | . . . . . . . . Average Slot Usage (%) 92 | . 100 100 88 79 100 100 92 Engine 10 | . 14 14 10 6 11 11 8 Treads 16 | . 28 28 14 13 11 11 11 Wheel 2 | . . . . 4 11 11 4 Device 7 | . 4 . 3 15 22 22 9 Storage 11 | . 14 14 11 11 11 11 9 Processor 5 | . 9 14 1 . . . 9 Hackware 3 | . . . . . . . 17 Protection 10 | . . . 24 6 11 11 5 Energy Gun 3 | . 2 . 4 . . . 7 Energy Cannon 1 | . . . 3 1 . . . Ballistic Gun 7 | . 24 17 2 5 . . 3 Launcher 4 | . . 10 . 8 11 11 . Slashing Weapon 6 | . . . 10 5 11 11 5 Peak Build Rating 36 | 9 12 16 25 19 21 22 36 Average Rating 19 | 4 10 13 19 14 20 21 29 On Entrance 14 | . 9 11 16 16 19 21 22 Naked Turns . | . . . . . . . . Heaviest Build 108 | 14 31 35 66 96 96 100 108 Greatest Support 43 | 40 40 40 43 40 10 10 40 Greatest Overweight (x) 35 | . . . 3 9 9 9 35 Average Overweight (x) 3 | . . . 1 4 9 9 7 Largest Inventory Capacity 25 | 8 15 15 20 25 25 25 25 Average Capacity 18 | 6 12 15 15 21 25 25 25 Most Carried 25 | 3 15 15 15 20 25 25 25 Average Carried 17 | 1 10 14 13 15 23 24 24 Final Capacity 25 | 8 15 15 20 25 25 25 25 Final Carried 25 | 3 15 14 15 20 24 25 21 Class Distribution -------------------- 57% | Mutant 16% | Scavenger-Mutant 11% | Hacker-Mutant 4% | Hacker-Assassin 4% | Assassin 3% | Hacker-Skirmisher Dominant Class ---------------- Mutant | -10/Materials Mutant | -10/Mines Mutant | -9/Materials Mutant | -9/Mines Scavenger-Mutant | -9/Exiles Assassin | -8/Mines Hacker-Mutant | -8/Materials Resources | -11 -10 -10 -9 -9 -9 -8 -8 ----------- Run | Yrd Mat Min Mat Min Exi Min Mat Matter Collected 2516 | 272 272 487 501 287 . . 697 Remotely . | . . . . . . . . Salvage Created 4119 | 44 502 267 1944 91 . . 1271 Parts 285 | 6 39 17 132 11 . . 80 Haulers Intercepted 5 | . 1 . 3 . . . 1 Recyclers Shooed 1 | . . . 1 . . . . Parts Field Recycled . | . . . . . . . . Retrieved Matter . | . . . . . . . . Parts Self-Destructed . | . . . . . . . . Prevented . | . . . . . . . . Kills | -11 -10 -10 -9 -9 -9 -8 -8 ------- Run | Yrd Mat Min Mat Min Exi Min Mat Combat Hostiles Destroyed 88 | . 9 9 42 8 . . 20 Melee 32 | . . . 25 2 . . 5 Guns 21 | . 5 3 5 . . . 8 Cannons 6 | . . . 4 2 . . . AOE 29 | . 4 6 8 4 . . 7 Classes Destroyed 15 | 2 6 . 4 1 . . 2 Worker 10 | 1 3 1 . . . . 5 Builder 3 | . . . 1 . . . 2 Tunneler 4 | 1 . 2 . . . . 1 Hauler 5 | . 1 . 3 . . . 1 Recycler 8 | . 1 1 3 . . . 3 Mechanic 2 | . . . . . . . 2 Operator 5 | . 2 . 2 . . . 1 Watcher 11 | . 3 . 5 . . . 3 Swarmer 24 | . 2 3 8 6 . . 5 Grunt 48 | . 7 6 25 1 . . 9 Duelist 1 | . . . 1 . . . . Protector 1 | . . . 1 . . . . Sentry 11 | . . . 7 . . . 4 Demolisher 1 | . . . . 1 . . . Hunter 2 | . . . . . . . 2 Best Kill Streak 6 | 2 4 6 6 3 . . 5 Combat Bots Only 6 | . 2 4 6 3 . . 5 Max Kills in Single Turn 3 | 1 2 2 3 2 . . 3 Gunslinging 1 | . 1 . . . . . . Exploded 3 | . 1 2 3 2 . . 3 Melee 1 | . . . 1 1 . . 1 Uniques/NPCs Destroyed . | . . . . . . . . Combat | -11 -10 -10 -9 -9 -9 -8 -8 -------- Run | Yrd Mat Min Mat Min Exi Min Mat Hostile Shots Fired 527 | . 54 20 235 25 . . 193 Missed 141 | . 14 8 59 6 . . 54 Damage Taken 6213 | . 512 203 2587 217 . . 2694 Core 1073 | . 102 54 326 35 . . 556 Absorbed by Shields . | . . . . . . . . Core Remaining (%) 48 | 100 . 37 . . . 9 . Volleys Fired 213 | 4 38 26 57 14 . . 74 Largest 2 | 2 2 2 2 2 . . 2 Hottest 136 | 70 80 60 136 91 . . 115 Shots Fired 362 | 8 76 40 92 19 . . 127 Gun 288 | 8 69 19 62 10 . . 120 Cannon 21 | . . . 19 2 . . . Launcher 53 | . 7 21 11 7 . . 7 Special . | . . . . . . . . Kinetic 213 | 4 61 19 36 10 . . 83 Thermal 65 | 4 8 . 19 2 . . 32 Explosive 53 | . 7 21 11 7 . . 7 Electromagnetic 31 | . . . 26 . . . 5 Robot Hit Streak 15 | 6 7 7 15 3 . . 12 Robot Miss Streak 10 | . 4 2 3 3 . . 10 Penetration Max 1 | . . . . . . . 1 Secondary Targets 4 | . 2 . 1 . . . 1 Max Gunslinging Chain 1 | . 1 . 1 . . . 1 Shots Hit Robots 296 | 6 40 17 116 8 . . 109 Core Hits 208 | 3 26 16 70 9 . . 84 Critical Kills . | . . . . . . . . Critical Parts Destroyed 1 | . . . . . . . 1 Critical Strikes 9 | 1 . . 4 . . . 4 Burn 1 | 1 . . . . . . . Destroy 1 | . . . . . . . 1 Corrupt 2 | . . . 2 . . . . Sever 5 | . . . 2 . . . 3 Melee Attacks 133 | . . . 81 5 . . 47 Impact . | . . . . . . . . Slashing 133 | . . . 81 5 . . 47 Piercing . | . . . . . . . . Sneak Attacks 5 | . . . 1 . . . 4 Combat Hostiles . | . . . . . . . . Follow-up Attacks 7 | . . . 7 . . . . Damage Inflicted 9178 | 61 980 852 3833 427 . . 3025 Guns 3087 | 61 601 216 623 31 . . 1555 Cannons 350 | . . . 307 43 . . . Explosions 2846 | . 379 636 952 273 . . 606 Melee 2895 | . . . 1951 80 . . 864 Ramming . | . . . . . . . . Kinetic 2372 | 24 563 216 372 31 . . 1166 Thermal 922 | 37 149 . 370 43 . . 323 Explosive 2672 | . 268 636 889 273 . . 606 Electromagnetic 317 | . . . 251 . . . 66 Impact . | . . . . . . . . Slashing 2895 | . . . 1951 80 . . 864 Piercing . | . . . . . . . . Highest Corruption . | . . . . . . . . Average Corruption . | . . . . . . . . Corruption Purged . | . . . . . . . . Corruption Blocked . | . . . . . . . . Overload Shots . | . . . . . . . . Overflow Damage 174 | . . 8 75 19 . . 72 Projectiles . | . . . . . . . . Explosions 74 | . . 8 54 1 . . 11 Melee 100 | . . . 21 18 . . 61 Knockbacks . | . . . . . . . . Impact . | . . . . . . . . Kinetic . | . . . . . . . . Secondary . | . . . . . . . . Self-Inflicted Damage 512 | . 27 95 342 18 . . 30 Shots 21 | . 1 5 12 1 . . 2 Rammed . | . . . . . . . . Targets Rammed . | . . . . . . . . Kicked . | . . . . . . . . Crushed . | . . . . . . . . Highest Temperature 384 | 40 99 21 384 36 . . 352 Average Temperature 59 | 22 22 9 53 16 . . 155 Received Heat Transfer 1974 | . 204 48 903 . . . 819 Effects 4 | . . . 2 . . . 2 Shutdowns 1 | . . . . . . . 1 Energy Bleed 1 | . . . . . . . 1 Matter Decay 1 | . . . 1 . . . . Short Circuit 1 | . . . 1 . . . . Siege Activations . | . . . . . . . . Robots Corrupted . | . . . . . . . . Combat Hostiles . | . . . . . . . . Parts Fried 1 | . . . 1 . . . . Impact Corruptions . | . . . . . . . . Robots Melted . | . . . . . . . . Combat Hostiles . | . . . . . . . . Parts Melted 1 | 1 . . . . . . . Heat Transferred 1503 | 185 211 . 618 74 . . 415 Parts Sabotaged . | . . . . . . . . Parts Stolen . | . . . . . . . . Parts Stripped . | . . . . . . . . Power Chain Reactions 2 | . . . 2 . . . . Alert | -11 -10 -10 -9 -9 -9 -8 -8 ------- Run | Yrd Mat Min Mat Min Exi Min Mat Peak Influence 1045 | 10 238 224 1045 515 . . 357 Initial 386 | . 6 42 3 386 . . . Average 177 | . 69 73 325 335 . . 84 Maximum Alert Level 3 | . 1 1 3 2 . . 1 Low Security (%) 68 | 100 93 94 54 . . 100 78 Level 1 18 | . 6 5 13 79 . . 21 Level 2 4 | . . . 9 20 . . . Level 3 7 | . . . 22 . . . . Level 4 . | . . . . . . . . Level 5 . | . . . . . . . . High Security . | . . . . . . . . Max Security . | . . . . . . . . Squads Dispatched 18 | . 2 . 8 1 . . 7 Investigation 6 | . 1 . 3 . . . 2 Extermination . | . . . . . . . . Reinforcement 8 | . 1 . 4 1 . . 2 Assault 1 | . . . 1 . . . . Garrison 3 | . . . . . . . 3 Intercept . | . . . . . . . . Searches Triggered . | . . . . . . . . Construction Impeded 1 | . . . . 1 . . . Haulers Reinforced . | . . . . . . . . Active Scanning Responses . | . . . . . . . . Cargo Convoy Interrupts . | . . . . . . . . Stealth | -11 -10 -10 -9 -9 -9 -8 -8 --------- Run | Yrd Mat Min Mat Min Exi Min Mat Distress Signals 4 | . . 1 2 . . . 1 Communications Jammed . | . . . . . . . . Distress Signals . | . . . . . . . . Times Spotted 165 | . 20 9 69 26 . . 41 Peak Tracking Total 16 | . 3 2 8 16 . . 4 Tactical Retreats 24 | . 2 . 17 1 . . 4 Traps | -11 -10 -10 -9 -9 -9 -8 -8 ------- Run | Yrd Mat Min Mat Min Exi Min Mat Traps Triggered 1 | . . . 1 . . . . Indirectly . | . . . . . . . . Trap Hack Attempts . | . . . . . . . . Triggered . | . . . . . . . . Disarmed . | . . . . . . . . Reprogrammed 3 | . 3 . . . . . . Reused . | . . . . . . . . Traps Extracted . | . . . . . . . . Installed . | . . . . . . . . Triggered . | . . . . . . . . Machines | -11 -10 -10 -9 -9 -9 -8 -8 ---------- Run | Yrd Mat Min Mat Min Exi Min Mat Machines Disabled 11 | . 4 . 6 1 . . . Max in Single Turn 4 | . 2 . 4 . . . . Garrison Access 1 | . . . . . . . 1 Machines Repaired . | . . . . . . . . Machines Dismantled . | . . . . . . . . Machines Sabotaged . | . . . . . . . . Overloaded Fab Kills . | . . . . . . . . Hacking | -11 -10 -10 -9 -9 -9 -8 -8 --------- Run | Yrd Mat Min Mat Min Exi Min Mat Machines Accessed 29 | . 8 . 10 1 2 . 8 Terminals 20 | . 7 . 7 . . . 6 Fabricators . | . . . . . . . . Repair Stations . | . . . . . . . . Recycling Units 3 | . 1 . 2 . . . . Scanalyzers 2 | . . . 1 . . . 1 Garrison Access 1 | . . . . . . . 1 Total Hacks 86 | . 28 . 26 1 5 . 26 Successful 53 | . 15 . 17 1 5 . 15 Failed 33 | . 13 . 9 . . . 11 Catastrophic 3 | . 1 . 1 . . . 1 Database Lockouts . | . . . . . . . . Manual 70 | . 28 . 22 . 1 . 19 Terminals 66 | . 27 . 20 . . . 19 Fabricators . | . . . . . . . . Repair Stations . | . . . . . . . . Recycling Units 3 | . 1 . 2 . . . . Scanalyzers 9 | . . . 4 . . . 5 Garrison Access 2 | . . . . . . . 2 Terminal Hacks 18 | . 6 . 3 1 5 . 3 Record 4 | . . . . . 4 . . Robot Analysis 4 | . 4 . . . . . . Open Door 1 | . . . . 1 . . . Branch Access Points 1 | . . . 1 . . . . Terminal Index 2 | . 1 . 1 . . . . Unreport Threat 4 | . . . 1 . . . 3 Reprogram Traps 1 | . 1 . . . . . . Derelict Proto ID Bank 1 | . . . . . 1 . . Fabricator Hacks . | . . . . . . . . Repair Station Hacks . | . . . . . . . . Recycling Unit Hacks . | . . . . . . . . Scanalyzer 9 | . . . 4 . . . 5 Insert Component 4 | . . . 2 . . . 2 Analyze 5 | . . . 2 . . . 3 Garrison Access Hacks 1 | . . . . . . . 1 Seal Access 1 | . . . . . . . 1 Unauthorized Hacks 25 | . 9 . 10 . . . 6 Terminals 22 | . 8 . 8 . . . 6 Assimilate 1 | . . . . . . . 1 Botnet 19 | . 7 . 7 . . . 5 Operators 1 | . 1 . . . . . . Skim 1 | . . . 1 . . . . Fabricators . | . . . . . . . . Repair Stations . | . . . . . . . . Recycling Units 3 | . 1 . 2 . . . . Tunnel 3 | . 1 . 2 . . . . Scanalyzers . | . . . . . . . . Garrison Access . | . . . . . . . . Data Cores Recovered 1 | . 1 . . . . . . Used . | . . . . . . . . Hacking Detections 22 | . 7 . 8 . . . 7 Full Trace Events 3 | . . . 1 . . . 2 Feedback Events . | . . . . . . . . Feedback Blocked . | . . . . . . . . Robot Schematics Acquired . | . . . . . . . . Robots Built . | . . . . . . . . Authchips . | . . . . . . . . Time . | . . . . . . . . Total Robot Build Rating . | . . . . . . . . Part Schematics Acquired 4 | . . . 2 . . . 2 Parts Built . | . . . . . . . . Authchips . | . . . . . . . . Time . | . . . . . . . . Total Part Build Rating . | . . . . . . . . Parts Repaired . | . . . . . . . . Time . | . . . . . . . . Parts Recycled . | . . . . . . . . Recycled Matter . | . . . . . . . . Retrieved Matter . | . . . . . . . . Retrieved Components . | . . . . . . . . Parts Scanalyzed 4 | . . . 2 . . . 2 Part Schematics Acquired 4 | . . . 2 . . . 2 Parts Damaged . | . . . . . . . . Bothacking | -11 -10 -10 -9 -9 -9 -8 -8 ------------ Run | Yrd Mat Min Mat Min Exi Min Mat Used RIF Installer . | . . . . . . . . Robots Hacked . | . . . . . . . . Non-combat . | . . . . . . . . Combat . | . . . . . . . . Robot Hacks Applied . | . . . . . . . . Relay Couplers Released . | . . . . . . . . Fabnet Peak Effective % . | . . . . . . . . Robots Rewired . | . . . . . . . . Allies Hacked . | . . . . . . . . Hacks Repelled . | . . . . . . . . Allies | -11 -10 -10 -9 -9 -9 -8 -8 -------- Run | Yrd Mat Min Mat Min Exi Min Mat Total Allies 6 | . . 1 . 5 . . . Largest Group 3 | . . 1 . 3 3 3 3 Highest-Rated Group 46 | . . 31 . 46 40 40 40 Highest-Rated Ally 31 | . . 31 . 31 16 16 16 Total Orders 3 | . . . . . . . 3 STAY 3 | . . . . . . . 3 Ally Attacks 11 | . . . . 5 . . 6 Total Damage 121 | . . . . 84 . . 37 Kills 2 | . . . . 2 . . . Allies Corrupted . | . . . . . . . . Allies Melted . | . . . . . . . . Intel | -11 -10 -10 -9 -9 -9 -8 -8 ------- Run | Yrd Mat Min Mat Min Exi Min Mat Robot Analysis Total 4 | . 4 . . . . . . Derelict Logs Recovered 3 | . . 1 . 2 . . . Drone Launches . | . . . . . . . . Drone Recoveries . | . . . . . . . . Exploration | -11 -10 -10 -9 -9 -9 -8 -8 ------------- Run | Yrd Mat Min Mat Min Exi Min Mat Turns Passed 13528 | 111 1564 2062 4024 1184 1045 625 2913 Spaces Moved 5098 | 57 894 941 1266 418 483 290 749 Core 10 | 3 . . . . . . 7 Treads 3680 | 54 894 941 1266 232 . . 293 Legs . | . . . . . . . . Wheels 1407 | . . . . 186 483 290 448 Hover . | . . . . . . . . Flight 1 | . . . . . . . 1 Fastest Speed 50 | 50 160 160 160 140 215 215 200 Average Speed 228 | 154 160 160 283 250 215 215 311 Slowest Speed 1800 | 160 160 160 400 400 215 215 1800 Overloaded Moves . | . . . . . . . . Propulsion Burnouts . | . . . . . . . . Robots Hopped . | . . . . . . . . Cave-ins Triggered . | . . . . . . . . Exploration Rate (%) 73 | 6 95 101 93 83 88 68 54 Regions Visited 7 Branch Regions 4 Pre-discovered Areas 4 | . 1 . 2 . 1 . . Known Exits Taken 4 | . . 1 1 1 . 1 . Unknown Exits Taken 3 | 1 1 . . . 1 . . Scrap Searched 4 | . . 2 . 2 . . . Spaces Dug 45 | . . 11 3 9 . . 22 Terrain Destroyed 411 | . 61 142 98 41 . . 69 Melee 24 | . . . 3 . . . 21 Projectile 1 | . . . . . . . 1 AOE 386 | . 61 142 95 41 . . 47 Terrain Rammed . | . . . . . . . . Walls Destroyed . | . . . . . . . . Machines Disabled . | . . . . . . . . Actions | -11 -10 -10 -9 -9 -9 -8 -8 --------- Run | Yrd Mat Min Mat Min Exi Min Mat Total 6437 | 70 967 1459 1493 527 492 292 1137 Wait 796 | . 2 475 43 75 . . 201 Move 5091 | 56 893 940 1265 417 482 289 749 Hop . | . . . . . . . . Pick Up 57 | 3 17 3 13 6 7 1 7 Fast Attach 43 | 7 3 1 10 4 . 1 17 Attach 21 | . . . 10 3 . . 8 Detach 4 | . 1 . . . . . 3 Swap 41 | . 3 9 14 3 . . 12 Drop 51 | . 10 5 13 . 3 1 19 Fire 213 | 4 38 26 57 14 . . 74 Melee 120 | . . . 68 5 . . 47 Ram . | . . . . . . . . Kick . | . . . . . . . . Crush . | . . . . . . . . Escape Stasis . | . . . . . . . . Rewire . | . . . . . . . . Trap . | . . . . . . . . Miscellaneous . | . . . . . . . . Route ------- -11/Scrapyard -10/Materials (discovered 4 exits: *Mat x3 / [*Min]) -10/Mines (discovered 3 exits: *Mat x2 / *Sub) -9/Materials (discovered 5 exits: *Mat x2 / *Min x2 / *Sto) -9/Mines (discovered 3 exits: *Mat x2 / *Exi) -9/Exiles -8/Mines -8/Materials History --------- Turn | Location | Event 6 | -11/Scrapyard | Discovered new exit (range 15) 112 | -11/Scrapyard | Entered Materials 193 | -10/Materials | Discovered new exit (range 8) 312 | -10/Materials | Build established: Mutant 528 | -10/Materials | Discovered new exit (range 8) 1161 | -10/Materials | Discovered new exit (range 5) 1501 | -10/Materials | Discovered new exit (range 16) 1676 | -10/Materials | Entered Mines 1760 | -10/Mines | Learned 4 Materials zone layouts 1800 | -10/Mines | Found a damaged Exp. Sensor Array with a note attached 1805 | -10/Mines | Found Prototype Device 1831 | -10/Mines | Discovered new exit (range 10) 1990 | -10/Mines | Joined a pair of Derelicts in attacking an 0b10 outpost 2084 | -10/Mines | Excavation squad dispatched 2084 | -10/Mines | A large section of the Mines collapsed 2334 | -10/Mines | Excavation squad dispatched 2755 | -10/Mines | Core integrity fell below 50% 2799 | -10/Mines | Discovered new exit (range 5) 2890 | -10/Mines | Received a Mining Laser from a helpful Derelict 3181 | -10/Mines | Discovered new exit (range 5) 3659 | -10/Mines | Identified exit to Subcaves 3736 | -10/Mines | Identified exit to Materials 3738 | -10/Mines | Entered Materials 3738 | -9/Materials | Evolved 2 slots: Utility x2 3739 | -9/Materials | Identified exit to Materials 4075 | -9/Materials | Lost 3 parts (2n1u) 5224 | -9/Materials | Discovered new exit (range 16) 5664 | -9/Materials | Discovered new exit (range 15) 6513 | -9/Materials | Lost 5 parts (1p1n3u) 6538 | -9/Materials | First assault squad dispatched 6588 | -9/Materials | Core integrity fell below 50% 6617 | -9/Materials | Discovered new exit (range 8) 6779 | -9/Materials | Build established: Scavenger-Mutant 7155 | -9/Materials | Identified exit to Mines 7155 | -9/Materials | Identified exit to Storage 7385 | -9/Materials | Core integrity fell below 20% 7484 | -9/Materials | Build established: Mutant 7762 | -9/Materials | Entered Mines 7911 | -9/Mines | Discovered exit to Materials (range 5) 7984 | -9/Mines | Assembled infested the area 8021 | -9/Mines | Lost 3 parts (1p1u1w) 8398 | -9/Mines | Found the Drone Emporium 8423 | -9/Mines | Found Prototype Device 8494 | -9/Mines | Identified exit to Exiles 8514 | -9/Mines | Discovered exit to Materials (range 10) 8517 | -9/Mines | Found DCF Scrap (15 items) 8573 | -9/Mines | Assisted by bots powering up and referring to "LRC-V3" 8775 | -9/Mines | Build established: Scavenger-Mutant 8930 | -9/Mines | Deemed a non-threat by the Exiles lab entrance 8946 | -9/Mines | Entered Exiles 8946 | -9/Exiles | Accompanied by 3 allies 9003 | -9/Exiles | Met 8R-AWN 9038 | -9/Exiles | Met EX-HEX 9096 | -9/Exiles | Met EX-BIN 9124 | -9/Exiles | Aligned with FarCom system 9126 | -9/Exiles | Given EX-Vault access code 9175 | -9/Exiles | Opened EX-Vault 9190 | -9/Exiles | Found Superbattery 9236 | -9/Exiles | Warned to stay clear of 0b10 Research branches 9305 | -9/Exiles | Met EX-DEC 9529 | -9/Exiles | Discovered new exit (range 14) 9609 | -9/Exiles | Learned location of Zion (-6) 9696 | -9/Exiles | Visited The Gauntlet 9991 | -9/Exiles | Left Exiles lab with Superbattery 9991 | -9/Exiles | Entered Mines 9991 | -8/Mines | Accompanied by 3 allies 10015 | -8/Mines | Discovered exit to Materials (range 14) 10355 | -8/Mines | Build established: Assassin 10616 | -8/Mines | Entered Materials 10616 | -8/Materials | Accompanied by 3 allies 10616 | -8/Materials | Evolved 2 slots: Utility x2 11114 | -8/Materials | Build established: Hacker-Mutant 12490 | -8/Materials | Build established: Hacker-Assassin 12767 | -8/Materials | Garrison activated, responded to threat 13173 | -8/Materials | Build established: Hacker-Skirmisher 13263 | -8/Materials | Lost 4 parts (1p1n2w) 13478 | -8/Materials | Core integrity fell below 50% 13519 | -8/Materials | Core integrity fell below 20% 13529 | -8/Materials | Destroyed by G-47 Trooper with Particle Gun Last Messages --------------- 13477_ ALERT: Hostile activity reported, dispatching reinforcements to area. 13477_ Gauss Rifle destroyed. 13482_ U-05 Engineer destroyed. 13482_ Wheel destroyed. 13488_ Adv. Visual Processing Unit destroyed. 13488_ Critical hit (Blast). 13488_ K-01 Serf collects debris. 13493_ Heat Sink destroyed. 13493_ Minigun destroyed. 13493_ K-01 Serf collects debris. 13498_ Knocked back. 13503_ Hacking Suite destroyed. 13503_ Knocked back. 13511_ Acquired Beam Rifle. 13513_ Acquired 10 matter. 13513_ U-05 Engineer builds a Wall. 13518_ Penetrated by Slug. 13518_ Knocked back. 13519_ Critical hit (Burn: +37). 13525_ Beam Rifle destroyed. Map ----- +----------------------------------------------------+ | ?????????????????????????????????????"""?????????? | | ?????????????????????????????????????"""?????????? | | ?????????????????????????????????????"""?????????? | | ?????????????????????????????????????????????????? | | ?????????????????????????????????????"""?????????? | | ?????????????????????????????????????"""?????????? | | ????????????????????##########???????"""?????????? | | ????????????????????# #???????????????????? | | ????????????????????# ! "" #???#######???????? # | | ????????????????????# G" #???# ####### # | | ????????????????????# "" #???# | | ????????????????????# #???# | | ????????????????????# """"" #???# % | | ????????????????????# """"" #???# ######## ## | | ????????????????????# """"" #???## ##?????????? | | ????????????????????# #????# ##?????????? | | ?????????????############+####### #% ##?????????? | | ?????????????# # ####### %##?????????? | | ?????????????# # = ##?????????? | | ?????????????# + % ##?????????? | | ?????????????# # % ##?????????? | | ?????????????# # = ####### ###????????? | | ?????????????# ###g######### # #####????? | | ?????????????# g#?#%## # # ##???? | | ?????????????# #?#=## """ / #### ##???? | | ?????????????# #?#@## "R" # #???? | | ?????????????###### #?#u## " " # #???? | | ??????????????????# #?# ## # #???? | | ??????????????????# #?# ## = ######## #???? | | ??????????????????# #?#!############ # #???? | | ??????????????????## ##?#=#?????????### # #???? | | ???????????????????# #??#u#???????????#### ##### | | ???????????????????# #??#a#??????????????# | | ???????????????????# #?? ! ??????????????# | | ??????????????????? ??%=!??????????????# | | ??????????????????? ??=%[??????????????## ###### | | ??????????????????? ??=!%???????????????# ????# | | ??????????????????? ?#!%= ??????????????# ????# | | ??????????????????? ?##| ??????????????# ???# | | ??????????????????? ??# % ??????????????# ???# | | ??????????????????? ??? ??????????????# ???# | | ??????????????????? ??? #?????????????# !??# | | ??????????????????? ??? #?????????????# ###??# | | ??????????????????? ??? ?????????????# #????# | | ??????????????????? ??? ??????####?### ###??# | | ????????????????????????? ??????? # #??# | | ????????????????????????? ????????= # #??# | | ????????????????????????? ?????????? + T #??# | | ????????????????????????? ????????????# #??# | | ????????????????????????????????????????# ! #??# | +----------------------------------------------------+ Best States ------------- Heat Dissipation 41 Energy Generation 18 Energy Capacity 265 Matter Stores 300 Matter Capacity 300 Sight Range 20 Terrain Scan Range 16 Terrain Scan Density 10 Armor Coverage 675 Resistance: KI 20 Evasion (%) 40 Targeting Accuracy 5 Recoil Reduction 2 Offensive Hacking 20 Item Schematics ----------------- Hacking Suite | -9/Materials | Scanalyzed Autogun | -9/Materials | Scanalyzed Axe | -8/Materials | Scanalyzed Rnf. Deuterium Engine | -8/Materials | Scanalyzed Robot Schematics ------------------ None Fabricated ------------ Nothing Alien Tech Used ----------------- None Achievements -------------- None Challenges ------------ None Game ------ Seed ReinforcedReactionStorage Manual? 0 Play Time 01:02:25 Cumulative 33.0 hours Start 2024.11.09 @ 13:45:32 End 2024.11.10 @ 00:45:45 Sessions 3 Manual Loads 0 Difficulty Rogue Special Mode None Game No. 70 Rogue 70 Adventurer 0 Explorer 0 Win Type - Total 0 Types 0/0/0/0/0/0/0/0/0 Lore% 30 Gallery% 26 Achievement% 28 Wizard Run 0 Options --------- Layout 0 ASCII 0 Keyboard 0 Movement Mouse Keybinds 0 Fullscreen 1 Font 24/Smallcaps Map View 183x50 Zoom Use 48% Tactical HUD 1 Map Filters NONE Filters NONE Steam 1 RUN: e6e95926-0fa1-496c-a5e4-6dd915e248a3